[Event "Titled Tuesday Blitz February 15 Late 2022"]
[White "Yoo, Christopher Woojin"]
[Black "Klukin, Kirill"]
[WhiteFideId "30909694"]
[BlackFideId "24199273"]
[WhiteElo "2105"]
[BlackElo "2324"]
[Result "1/2-1/2"]
[Round "07"]
[TimeControl "180+1"]
[Date "2022.02.15"]
[WhiteClock "0:00:05"]
[BlackClock "0:00:13"]

1. e4 {[%clk 0:03:00]}  c5 {[%clk 0:03:00]} 2. Nf3 {[%clk 0:02:58]}  Nc6 {[%clk 0:03:00]} 3. b4 {[%clk 0:02:57]}  d6 {[%clk 0:02:56]} 4. bxc5 {[%clk 0:02:52]}  dxc5 {[%clk 0:02:56]} 5. Bb5 {[%clk 0:02:51]}  Bd7 {[%clk 0:02:56]} 6. O-O {[%clk 0:02:50]}  Nf6 {[%clk 0:02:56]} 7. d3 {[%clk 0:02:48]}  a6 {[%clk 0:02:51]} 8. Bxc6 {[%clk 0:02:48]}  Bxc6 {[%clk 0:02:52]} 9. Bb2 {[%clk 0:02:48]}  e6 {[%clk 0:02:51]} 10. Ne5 {[%clk 0:02:43]}  Qc7 {[%clk 0:02:50]} 11. Nxc6 {[%clk 0:02:41]}  Qxc6 {[%clk 0:02:50]} 12. Nd2 {[%clk 0:02:42]}  b5 {[%clk 0:02:47]} 13. a4 {[%clk 0:02:41]}  Be7 {[%clk 0:02:47]} 14. axb5 {[%clk 0:02:11]}  axb5 {[%clk 0:02:48]} 15. Rxa8+ {[%clk 0:02:10]}  Qxa8 {[%clk 0:02:49]} 16. Qa1 {[%clk 0:02:10]}  O-O {[%clk 0:02:48]} 17. Be5 {[%clk 0:01:55]}  c4 {[%clk 0:01:43]} 18. dxc4 {[%clk 0:01:36]}  bxc4 {[%clk 0:01:39]} 19. Qxa8 {[%clk 0:01:27]}  Rxa8 {[%clk 0:01:38]} 20. Ra1 {[%clk 0:01:26]}  Rxa1+ {[%clk 0:01:08]} 21. Bxa1 {[%clk 0:01:24]}  Bb4 {[%clk 0:01:09]} 22. c3 {[%clk 0:01:19]}  Bc5 {[%clk 0:01:09]} 23. Kf1 {[%clk 0:01:10]}  Ng4 {[%clk 0:01:09]} 24. f3 {[%clk 0:00:58]}  Ne3+ {[%clk 0:01:07]} 25. Ke2 {[%clk 0:00:55]}  Nxg2 {[%clk 0:01:03]} 26. Nxc4 {[%clk 0:00:53]}  g5 {[%clk 0:01:04]} 27. Bb2 {[%clk 0:00:53]}  Nf4+ {[%clk 0:00:57]} 28. Kf1 {[%clk 0:00:53]}  Nd3 {[%clk 0:00:56]} 29. Ba3 {[%clk 0:00:52]}  Bxa3 {[%clk 0:00:48]} 30. Nxa3 {[%clk 0:00:53]}  Ne5 {[%clk 0:00:48]} 31. Ke2 {[%clk 0:00:53]}  Kf8 {[%clk 0:00:49]} 32. Nc2 {[%clk 0:00:49]}  Ke7 {[%clk 0:00:49]} 33. Nd4 {[%clk 0:00:47]}  Kd6 {[%clk 0:00:49]} 34. Ke3 {[%clk 0:00:47]}  Ng6 {[%clk 0:00:42]} 35. Nb3 {[%clk 0:00:41]}  h5 {[%clk 0:00:37]} 36. c4 {[%clk 0:00:41]}  Ne5 {[%clk 0:00:29]} 37. c5+ {[%clk 0:00:39]}  Kc6 {[%clk 0:00:29]} 38. h3 {[%clk 0:00:34]}  Ng6 {[%clk 0:00:25]} 39. Kd4 {[%clk 0:00:30]}  Nh4 {[%clk 0:00:21]} 40. Na5+ {[%clk 0:00:27]}  Kb5 {[%clk 0:00:21]} 41. c6 {[%clk 0:00:26]}  Kb6 {[%clk 0:00:21]} 42. Ke3 {[%clk 0:00:14]}  Ng2+ {[%clk 0:00:21]} 43. Kf2 {[%clk 0:00:13]}  Nf4 {[%clk 0:00:22]} 44. Nc4+ {[%clk 0:00:08]}  Kc7 {[%clk 0:00:18]} 45. Kg3 {[%clk 0:00:07]}  h4+ {[%clk 0:00:17]} 46. Kg4 {[%clk 0:00:07]}  f6 {[%clk 0:00:17]} 47. e5 {[%clk 0:00:07]}  f5+ {[%clk 0:00:14]} 48. Kxg5 {[%clk 0:00:07]}  Nxh3+ {[%clk 0:00:15]} 49. Kxh4 {[%clk 0:00:07]}  Ng1 {[%clk 0:00:16]} 50. f4 {[%clk 0:00:06]}  Kxc6 {[%clk 0:00:16]} 51. Kg5 {[%clk 0:00:05]}  Ne2 {[%clk 0:00:15]} 52. Nd6 {[%clk 0:00:04]}  Kd5 {[%clk 0:00:15]} 53. Ne8 {[%clk 0:00:04]}  Ke4 {[%clk 0:00:14]} 54. Nf6+ {[%clk 0:00:03]}  Kf3 {[%clk 0:00:14]} 55. Nh5 {[%clk 0:00:04]}  Ke4 {[%clk 0:00:13]} 56. Kf6 {[%clk 0:00:03]}  Nxf4 {[%clk 0:00:12]} 57. Nxf4 {[%clk 0:00:02]}  Kxf4 {[%clk 0:00:13]} 58. Kxe6 {[%clk 0:00:03]}  Kg4 {[%clk 0:00:12]} 59. Kd5 {[%clk 0:00:02]}  f4 {[%clk 0:00:12]} 60. e6 {[%clk 0:00:02]}  f3 {[%clk 0:00:13]} 61. e7 {[%clk 0:00:03]}  f2 {[%clk 0:00:14]} 62. e8=Q {[%clk 0:00:04]}  f1=Q {[%clk 0:00:14]} 63. Qg6+ {[%clk 0:00:04]}  Kh3 {[%clk 0:00:13]} 64. Qh5+ {[%clk 0:00:04]}  Kg3 {[%clk 0:00:12]} 65. Qg5+ {[%clk 0:00:04]}  Kh3 {[%clk 0:00:12]} 66. Qe3+ {[%clk 0:00:05]}  Kg2 {[%clk 0:00:12]} 67. Qg5+ {[%clk 0:00:04]}  Kh3 {[%clk 0:00:13]} 68. Qh5+ {[%clk 0:00:04]}  Kg3 {[%clk 0:00:13]} 69. Qg6+ {[%clk 0:00:05]}  Kh2 {[%clk 0:00:11]} 70. Qh7+ {[%clk 0:00:05]}  Qh3 {[%clk 0:00:12]} 71. Qc7+ {[%clk 0:00:04]}  Qg3 {[%clk 0:00:12]} 72. Qc2+ {[%clk 0:00:04]}  Qg2+ {[%clk 0:00:12]} 73. Qxg2+ {[%clk 0:00:05]}  Kxg2 {[%clk 0:00:13]} 1/2-1/2


[Site "https://www.chess.com"]

[Event "Titled Tuesday Blitz February 15 Late 2022"]
[White "Yushko, Olga"]
[Black "Slugin, Sergey"]
[WhiteFideId "14114500"]
[BlackFideId "4122569"]
[WhiteElo "2028"]
[BlackElo "2358"]
[Result "1/2-1/2"]
[Round "07"]
[TimeControl "180+1"]
[Date "2022.02.16"]
[WhiteClock "0:00:05"]
[BlackClock "0:00:08"]

1. d4 {[%clk 0:02:58]}  Nf6 {[%clk 0:02:58]} 2. c4 {[%clk 0:02:58]}  c5 {[%clk 0:02:56]} 3. d5 {[%clk 0:02:58]}  e6 {[%clk 0:02:56]} 4. Nc3 {[%clk 0:02:57]}  exd5 {[%clk 0:02:57]} 5. cxd5 {[%clk 0:02:57]}  d6 {[%clk 0:02:57]} 6. e4 {[%clk 0:02:57]}  g6 {[%clk 0:02:56]} 7. Nf3 {[%clk 0:02:56]}  Bg7 {[%clk 0:02:55]} 8. Bd3 {[%clk 0:02:57]}  O-O {[%clk 0:02:54]} 9. h3 {[%clk 0:02:57]}  b5 {[%clk 0:02:54]} 10. Nxb5 {[%clk 0:02:56]}  Nxe4 {[%clk 0:02:45]} 11. Bxe4 {[%clk 0:02:56]}  Re8 {[%clk 0:02:44]} 12. Nd2 {[%clk 0:02:43]}  f5 {[%clk 0:02:25]} 13. O-O {[%clk 0:02:37]}  fxe4 {[%clk 0:02:22]} 14. Re1 {[%clk 0:02:36]}  Bf5 {[%clk 0:02:09]} 15. Qa4 {[%clk 0:02:35]}  Qd7 {[%clk 0:01:56]} 16. Nc3 {[%clk 0:02:21]}  Qxa4 {[%clk 0:01:42]} 17. Nxa4 {[%clk 0:02:20]}  Bd4 {[%clk 0:01:31]} 18. Nc4 {[%clk 0:02:17]}  Rf8 {[%clk 0:01:11]} 19. Bh6 {[%clk 0:02:09]}  Rf6 {[%clk 0:00:59]} 20. Bg5 {[%clk 0:02:06]}  Rf8 {[%clk 0:00:59]} 21. Nxd6 {[%clk 0:01:54]}  Bd7 {[%clk 0:00:54]} 22. Nc3 {[%clk 0:01:33]}  Bxf2+ {[%clk 0:00:49]} 23. Kh2 {[%clk 0:01:33]}  Bxe1 {[%clk 0:00:47]} 24. Rxe1 {[%clk 0:01:34]}  Na6 {[%clk 0:00:44]} 25. Ncxe4 {[%clk 0:01:31]}  Kg7 {[%clk 0:00:42]} 26. Rc1 {[%clk 0:01:24]}  h6 {[%clk 0:00:30]} 27. Be7 {[%clk 0:01:23]}  Rf4 {[%clk 0:00:19]} 28. Nxc5 {[%clk 0:01:21]}  Nxc5 {[%clk 0:00:15]} 29. Rxc5 {[%clk 0:01:21]}  Rf2 {[%clk 0:00:12]} 30. Ne4 {[%clk 0:01:13]}  Re2 {[%clk 0:00:11]} 31. Rc7 {[%clk 0:01:02]}  Rxe4 {[%clk 0:00:10]} 32. Rxd7 {[%clk 0:01:02]}  Kf7 {[%clk 0:00:07]} 33. Bc5+ {[%clk 0:00:59]}  Ke8 {[%clk 0:00:05]} 34. Rh7 {[%clk 0:00:58]}  Rc8 {[%clk 0:00:06]} 35. Rh8+ {[%clk 0:00:48]}  Kd7 {[%clk 0:00:06]} 36. Rh7+ {[%clk 0:00:48]}  Kd8 {[%clk 0:00:07]} 37. Bxa7 {[%clk 0:00:42]}  Rc2 {[%clk 0:00:03]} 38. Bb6+ {[%clk 0:00:40]}  Kc8 {[%clk 0:00:03]} 39. Rxh6 {[%clk 0:00:37]}  g5 {[%clk 0:00:03]} 40. Rg6 {[%clk 0:00:32]}  Rxb2 {[%clk 0:00:04]} 41. d6 {[%clk 0:00:23]}  Reb4 {[%clk 0:00:02]} 42. Bc5 {[%clk 0:00:19]}  Rc4 {[%clk 0:00:01]} 43. Rg8+ {[%clk 0:00:18]}  Kd7 {[%clk 0:00:02]} 44. Rg7+ {[%clk 0:00:18]}  Kc6 {[%clk 0:00:02]} 45. d7 {[%clk 0:00:18]}  Rd2 {[%clk 0:00:03]} 46. Be3 {[%clk 0:00:15]}  Rxd7 {[%clk 0:00:02]} 47. Rg6+ {[%clk 0:00:15]}  Kb5 {[%clk 0:00:03]} 48. Rxg5+ {[%clk 0:00:15]}  Ka4 {[%clk 0:00:03]} 49. Bb6 {[%clk 0:00:13]}  Rd2 {[%clk 0:00:03]} 50. Ra5+ {[%clk 0:00:12]}  Kb4 {[%clk 0:00:03]} 51. a3+ {[%clk 0:00:11]}  Kb3 {[%clk 0:00:03]} 52. Ra8 {[%clk 0:00:09]}  Rcc2 {[%clk 0:00:02]} 53. Rg8 {[%clk 0:00:09]}  Kxa3 {[%clk 0:00:02]} 54. h4 {[%clk 0:00:09]}  Rc4 {[%clk 0:00:02]} 55. Kh3 {[%clk 0:00:07]}  Rd3+ {[%clk 0:00:02]} 56. g3 {[%clk 0:00:07]}  Rd1 {[%clk 0:00:03]} 57. h5 {[%clk 0:00:07]}  Rh1+ {[%clk 0:00:03]} 58. Kg2 {[%clk 0:00:07]}  Rxh5 {[%clk 0:00:04]} 59. Ra8+ {[%clk 0:00:07]}  Kb3 {[%clk 0:00:03]} 60. Rb8 {[%clk 0:00:07]}  Kc2 {[%clk 0:00:02]} 61. Be3 {[%clk 0:00:06]}  Re5 {[%clk 0:00:02]} 62. Bf4 {[%clk 0:00:07]}  Rd5 {[%clk 0:00:02]} 63. Re8 {[%clk 0:00:06]}  Kd3 {[%clk 0:00:02]} 64. Re3+ {[%clk 0:00:06]}  Kd4 {[%clk 0:00:02]} 65. Re2 {[%clk 0:00:06]}  Kc5 {[%clk 0:00:02]} 66. Be3+ {[%clk 0:00:05]}  Kc6 {[%clk 0:00:03]} 67. Bf4 {[%clk 0:00:05]}  Rcd4 {[%clk 0:00:02]} 68. Re6+ {[%clk 0:00:05]}  Kd7 {[%clk 0:00:03]} 69. Ra6 {[%clk 0:00:04]}  Ke7 {[%clk 0:00:03]} 70. Ra7+ {[%clk 0:00:04]}  Ke6 {[%clk 0:00:03]} 71. Ra6+ {[%clk 0:00:04]}  Kf5 {[%clk 0:00:03]} 72. Ra8 {[%clk 0:00:03]}  Rd2+ {[%clk 0:00:03]} 73. Bxd2 {[%clk 0:00:03]}  Rxd2+ {[%clk 0:00:04]} 74. Kh3 {[%clk 0:00:04]}  Kg6 {[%clk 0:00:05]} 75. Rg8+ {[%clk 0:00:03]}  Kf7 {[%clk 0:00:05]} 76. Rg5 {[%clk 0:00:03]}  Kf6 {[%clk 0:00:05]} 77. Rg8 {[%clk 0:00:03]}  Kf7 {[%clk 0:00:06]} 78. Ra8 {[%clk 0:00:03]}  Kg7 {[%clk 0:00:06]} 79. Kg4 {[%clk 0:00:03]}  Kg6 {[%clk 0:00:06]} 80. Kh4 {[%clk 0:00:03]}  Rd4+ {[%clk 0:00:06]} 81. g4 {[%clk 0:00:03]}  Rd1 {[%clk 0:00:07]} 82. Ra6+ {[%clk 0:00:03]}  Kg7 {[%clk 0:00:07]} 83. Ra5 {[%clk 0:00:03]}  Rd7 {[%clk 0:00:06]} 84. Kg5 {[%clk 0:00:03]}  Rc7 {[%clk 0:00:07]} 85. Kh5 {[%clk 0:00:03]}  Rd7 {[%clk 0:00:07]} 86. g5 {[%clk 0:00:03]}  Rd6 {[%clk 0:00:05]} 87. Ra7+ {[%clk 0:00:03]}  Kg8 {[%clk 0:00:06]} 88. g6 {[%clk 0:00:03]}  Rd1 {[%clk 0:00:06]} 89. Ra8+ {[%clk 0:00:01]}  Kg7 {[%clk 0:00:06]} 90. Ra7+ {[%clk 0:00:01]}  Kg8 {[%clk 0:00:06]} 91. Ra4 {[%clk 0:00:01]}  Rd2 {[%clk 0:00:04]} 92. Kg5 {[%clk 0:00:01]}  Rg2+ {[%clk 0:00:04]} 93. Kf6 {[%clk 0:00:01]}  Rf2+ {[%clk 0:00:05]} 94. Kg5 {[%clk 0:00:02]}  Rg2+ {[%clk 0:00:05]} 95. Rg4 {[%clk 0:00:03]}  Rxg4+ {[%clk 0:00:05]} 96. Kxg4 {[%clk 0:00:04]}  Kg7 {[%clk 0:00:06]} 97. Kg5 {[%clk 0:00:04]}  Kg8 {[%clk 0:00:07]} 98. Kf5 {[%clk 0:00:05]}  Kg7 {[%clk 0:00:07]} 99. Kg5 {[%clk 0:00:05]}  Kg8 {[%clk 0:00:08]} 100. Kh5 {[%clk 0:00:05]}  Kg7 {[%clk 0:00:08]} 101. Kg5 {[%clk 0:00:05]} 1/2-1/2


[Site "https://www.chess.com"]

[Event "Titled Tuesday Blitz February 15 Late 2022"]
[White "Abdrlauf, Elham"]
[Black "Paravyan, David"]
[WhiteFideId "1533533"]
[BlackFideId "4194985"]
[WhiteElo "2334"]
[BlackElo "2569"]
[Result "1-0"]
[Round "08"]
[TimeControl "180+1"]
[Date "2022.02.15"]
[WhiteClock "0:00:07"]
[BlackClock "0:00:08"]

1. e4 {[%clk 0:02:57]}  e5 {[%clk 0:03:00]} 2. Nc3 {[%clk 0:02:58]}  Nf6 {[%clk 0:02:57]} 3. d4 {[%clk 0:02:58]}  exd4 {[%clk 0:02:58]} 4. Qxd4 {[%clk 0:02:58]}  Nc6 {[%clk 0:02:59]} 5. Qd3 {[%clk 0:02:59]}  d5 {[%clk 0:02:59]} 6. Bf4 {[%clk 0:02:57]}  d4 {[%clk 0:02:49]} 7. Nb5 {[%clk 0:02:56]}  Bb4+ {[%clk 0:02:22]} 8. c3 {[%clk 0:02:51]}  dxc3 {[%clk 0:02:22]} 9. Qxd8+ {[%clk 0:02:50]}  Kxd8 {[%clk 0:02:22]} 10. O-O-O+ {[%clk 0:02:37]}  Bd7 {[%clk 0:02:13]} 11. bxc3 {[%clk 0:02:34]}  Ba5 {[%clk 0:02:12]} 12. f3 {[%clk 0:02:31]}  Kc8 {[%clk 0:01:40]} 13. Kb2 {[%clk 0:02:10]}  Re8 {[%clk 0:01:30]} 14. Ne2 {[%clk 0:01:55]}  Ne5 {[%clk 0:01:27]} 15. Ned4 {[%clk 0:01:48]}  a6 {[%clk 0:01:22]} 16. Na3 {[%clk 0:01:48]}  b5 {[%clk 0:01:17]} 17. Nb3 {[%clk 0:01:24]}  Bb6 {[%clk 0:01:16]} 18. c4 {[%clk 0:01:24]}  Ng6 {[%clk 0:00:47]} 19. Bg3 {[%clk 0:01:18]}  Nh5 {[%clk 0:00:34]} 20. cxb5 {[%clk 0:01:04]}  Nxg3 {[%clk 0:00:35]} 21. hxg3 {[%clk 0:01:04]}  axb5 {[%clk 0:00:34]} 22. Bxb5 {[%clk 0:01:04]}  Bxb5 {[%clk 0:00:33]} 23. Nxb5 {[%clk 0:01:05]}  h6 {[%clk 0:00:34]} 24. Nc3 {[%clk 0:00:56]}  Ne5 {[%clk 0:00:33]} 25. Nd5 {[%clk 0:00:56]}  Nc4+ {[%clk 0:00:33]} 26. Kc3 {[%clk 0:00:57]}  Ra4 {[%clk 0:00:22]} 27. Nxb6+ {[%clk 0:00:45]}  Nxb6 {[%clk 0:00:23]} 28. Kb2 {[%clk 0:00:36]}  Nc4+ {[%clk 0:00:19]} 29. Kb1 {[%clk 0:00:37]}  Re6 {[%clk 0:00:19]} 30. Rc1 {[%clk 0:00:32]}  Rea6 {[%clk 0:00:17]} 31. Rhd1 {[%clk 0:00:20]}  Na3+ {[%clk 0:00:17]} 32. Ka1 {[%clk 0:00:18]}  Nc4 {[%clk 0:00:16]} 33. Kb1 {[%clk 0:00:14]}  Na3+ {[%clk 0:00:16]} 34. Kb2 {[%clk 0:00:14]}  Nb5 {[%clk 0:00:11]} 35. Ra1 {[%clk 0:00:14]}  Rxa2+ {[%clk 0:00:11]} 36. Rxa2 {[%clk 0:00:15]}  Rxa2+ {[%clk 0:00:12]} 37. Kxa2 {[%clk 0:00:14]}  Nc3+ {[%clk 0:00:12]} 38. Kb2 {[%clk 0:00:09]}  Nxd1+ {[%clk 0:00:13]} 39. Kc2 {[%clk 0:00:09]}  Ne3+ {[%clk 0:00:11]} 40. Kd3 {[%clk 0:00:09]}  Nd1 {[%clk 0:00:07]} 41. Nc5 {[%clk 0:00:02]}  Kd8 {[%clk 0:00:08]} 42. g4 {[%clk 0:00:02]}  Ke7 {[%clk 0:00:07]} 43. Na4 {[%clk 0:00:03]}  Kd6 {[%clk 0:00:07]} 44. Ke2 {[%clk 0:00:03]}  Ke5 {[%clk 0:00:04]} 45. Kxd1 {[%clk 0:00:03]}  Kd4 {[%clk 0:00:05]} 46. Ke2 {[%clk 0:00:03]}  c5 {[%clk 0:00:05]} 47. Nb6 {[%clk 0:00:02]}  c4 {[%clk 0:00:06]} 48. Nd5 {[%clk 0:00:03]}  c3 {[%clk 0:00:06]} 49. Ne3 {[%clk 0:00:04]}  g6 {[%clk 0:00:05]} 50. Nc2+ {[%clk 0:00:04]}  Kc4 {[%clk 0:00:06]} 51. Ke3 {[%clk 0:00:05]}  g5 {[%clk 0:00:05]} 52. g3 {[%clk 0:00:05]}  f6 {[%clk 0:00:06]} 53. f4 {[%clk 0:00:06]}  Kb5 {[%clk 0:00:06]} 54. Kd3 {[%clk 0:00:05]}  Kc5 {[%clk 0:00:06]} 55. Kxc3 {[%clk 0:00:06]}  f5 {[%clk 0:00:07]} 56. exf5 {[%clk 0:00:06]}  Kd5 {[%clk 0:00:07]} 57. fxg5 {[%clk 0:00:07]}  hxg5 {[%clk 0:00:08]} 1-0


[Site "https://www.chess.com"]

[Event "Titled Tuesday Blitz February 15 Late 2022"]
[White "Antonova, Nadezhda"]
[Black "Petrova, Irina"]
[WhiteFideId "14700182"]
[BlackFideId "14124122"]
[WhiteElo "1765"]
[BlackElo "1988"]
[Result "1-0"]
[Round "08"]
[TimeControl "180+1"]
[Date "2022.02.16"]
[WhiteClock "0:00:18"]
[BlackClock "0:00:06"]

1. Nf3 {[%clk 0:02:58]}  d5 {[%clk 0:02:59]} 2. b3 {[%clk 0:02:58]}  c6 {[%clk 0:02:58]} 3. Bb2 {[%clk 0:02:57]}  Bg4 {[%clk 0:02:58]} 4. g3 {[%clk 0:02:57]}  Nd7 {[%clk 0:02:56]} 5. Bg2 {[%clk 0:02:56]}  Ngf6 {[%clk 0:02:56]} 6. O-O {[%clk 0:02:57]}  e6 {[%clk 0:02:56]} 7. h3 {[%clk 0:02:57]}  Bf5 {[%clk 0:02:55]} 8. d3 {[%clk 0:02:57]}  Be7 {[%clk 0:02:53]} 9. Nh4 {[%clk 0:02:55]}  Bg6 {[%clk 0:02:51]} 10. Nxg6 {[%clk 0:02:54]}  hxg6 {[%clk 0:02:52]} 11. c4 {[%clk 0:02:54]}  Qc7 {[%clk 0:02:45]} 12. Nd2 {[%clk 0:02:53]}  g5 {[%clk 0:02:37]} 13. Rc1 {[%clk 0:02:43]}  g4 {[%clk 0:02:34]} 14. hxg4 {[%clk 0:02:43]}  Nxg4 {[%clk 0:02:15]} 15. Bxg7 {[%clk 0:02:35]}  Rg8 {[%clk 0:02:13]} 16. Bb2 {[%clk 0:02:34]}  Bf6 {[%clk 0:02:11]} 17. Qc2 {[%clk 0:02:27]}  Bxb2 {[%clk 0:02:07]} 18. Qxb2 {[%clk 0:02:26]}  Qd6 {[%clk 0:02:01]} 19. cxd5 {[%clk 0:02:23]}  exd5 {[%clk 0:02:02]} 20. Nf3 {[%clk 0:02:22]}  Qh6 {[%clk 0:02:00]} 21. e4 {[%clk 0:02:09]}  dxe4 {[%clk 0:01:56]} 22. Rfe1 {[%clk 0:02:08]}  O-O-O {[%clk 0:01:40]} 23. dxe4 {[%clk 0:02:02]}  Rh8 {[%clk 0:01:37]} 24. b4 {[%clk 0:01:50]}  Kb8 {[%clk 0:01:14]} 25. b5 {[%clk 0:01:47]}  cxb5 {[%clk 0:01:12]} 26. Qxb5 {[%clk 0:01:41]}  f6 {[%clk 0:01:08]} 27. Rb1 {[%clk 0:01:30]}  Nb6 {[%clk 0:01:01]} 28. a4 {[%clk 0:01:25]}  Rh7 {[%clk 0:00:36]} 29. a5 {[%clk 0:01:21]}  Nc8 {[%clk 0:00:35]} 30. a6 {[%clk 0:00:55]}  Nd6 {[%clk 0:00:35]} 31. Qa5 {[%clk 0:00:47]}  b6 {[%clk 0:00:32]} 32. Qb4 {[%clk 0:00:46]}  Ne5 {[%clk 0:00:30]} 33. Nxe5 {[%clk 0:00:39]}  fxe5 {[%clk 0:00:31]} 34. Red1 {[%clk 0:00:33]}  Rhd7 {[%clk 0:00:20]} 35. Rd5 {[%clk 0:00:29]}  Qf6 {[%clk 0:00:18]} 36. Rbd1 {[%clk 0:00:28]}  Kc7 {[%clk 0:00:12]} 37. Qc3+ {[%clk 0:00:27]}  Kb8 {[%clk 0:00:12]} 38. Qxe5 {[%clk 0:00:26]}  Qxe5 {[%clk 0:00:08]} 39. Rxe5 {[%clk 0:00:26]}  Nc4 {[%clk 0:00:06]} 40. Rxd7 {[%clk 0:00:24]}  Rxd7 {[%clk 0:00:07]} 41. Re8+ {[%clk 0:00:22]}  Kc7 {[%clk 0:00:07]} 42. Ra8 {[%clk 0:00:22]}  Kd6 {[%clk 0:00:07]} 43. Rb8 {[%clk 0:00:19]}  Kc5 {[%clk 0:00:06]} 44. Rb7 {[%clk 0:00:18]} 1-0


[Site "https://www.chess.com"]

[Event "Titled Tuesday Blitz February 15 Late 2022"]
[White "Barp, Alberto"]
[Black "Foisor, Sabina-Francesca"]
[WhiteFideId "872555"]
[BlackFideId "1212915"]
[WhiteElo "2229"]
[BlackElo "2243"]
[Result "1/2-1/2"]
[Round "08"]
[TimeControl "180+1"]
[Date "2022.02.16"]
[WhiteClock "0:00:21"]
[BlackClock "0:00:16"]

1. d4 {[%clk 0:03:00]}  d5 {[%clk 0:02:59]} 2. c4 {[%clk 0:02:58]}  e6 {[%clk 0:02:59]} 3. Nf3 {[%clk 0:02:57]}  Nf6 {[%clk 0:02:59]} 4. g3 {[%clk 0:02:56]}  Be7 {[%clk 0:02:59]} 5. Bg2 {[%clk 0:02:54]}  O-O {[%clk 0:02:58]} 6. Qb3 {[%clk 0:02:50]}  c6 {[%clk 0:02:54]} 7. O-O {[%clk 0:02:49]}  b6 {[%clk 0:02:52]} 8. Nc3 {[%clk 0:02:45]}  Ba6 {[%clk 0:02:49]} 9. cxd5 {[%clk 0:02:43]}  cxd5 {[%clk 0:02:37]} 10. Bf4 {[%clk 0:02:43]}  Nbd7 {[%clk 0:01:59]} 11. Rfc1 {[%clk 0:02:40]}  Ne8 {[%clk 0:01:54]} 12. Nb5 {[%clk 0:02:37]}  Bxb5 {[%clk 0:01:51]} 13. Qxb5 {[%clk 0:02:38]}  Bd6 {[%clk 0:01:49]} 14. Bd2 {[%clk 0:02:35]}  Qe7 {[%clk 0:01:40]} 15. Rc2 {[%clk 0:02:30]}  Nef6 {[%clk 0:01:35]} 16. Rac1 {[%clk 0:02:29]}  h6 {[%clk 0:01:32]} 17. a3 {[%clk 0:02:17]}  Ne4 {[%clk 0:01:22]} 18. Bb4 {[%clk 0:02:16]}  a6 {[%clk 0:01:08]} 19. Bxd6 {[%clk 0:02:15]}  Nxd6 {[%clk 0:01:01]} 20. Qd3 {[%clk 0:02:15]}  Ra7 {[%clk 0:00:57]} 21. Nd2 {[%clk 0:02:12]}  b5 {[%clk 0:00:55]} 22. b3 {[%clk 0:02:09]}  Raa8 {[%clk 0:00:45]} 23. e3 {[%clk 0:01:51]}  Rac8 {[%clk 0:00:45]} 24. Rxc8 {[%clk 0:01:50]}  Rxc8 {[%clk 0:00:46]} 25. Rxc8+ {[%clk 0:01:50]}  Nxc8 {[%clk 0:00:46]} 26. Qc3 {[%clk 0:01:51]}  Ncb6 {[%clk 0:00:43]} 27. Qc1 {[%clk 0:01:43]}  Qd8 {[%clk 0:00:38]} 28. Bf1 {[%clk 0:01:38]}  Qc8 {[%clk 0:00:38]} 29. Qxc8+ {[%clk 0:01:37]}  Nxc8 {[%clk 0:00:39]} 30. a4 {[%clk 0:01:36]}  Nd6 {[%clk 0:00:39]} 31. a5 {[%clk 0:01:26]}  Nb8 {[%clk 0:00:33]} 32. b4 {[%clk 0:01:16]}  Nc6 {[%clk 0:00:32]} 33. Nb3 {[%clk 0:01:17]}  Nxb4 {[%clk 0:00:31]} 34. Nc5 {[%clk 0:01:18]}  Nc6 {[%clk 0:00:30]} 35. Nxa6 {[%clk 0:01:10]}  Nxa5 {[%clk 0:00:30]} 36. Nb4 {[%clk 0:01:09]}  Kf8 {[%clk 0:00:27]} 37. Bd3 {[%clk 0:01:09]}  Ke7 {[%clk 0:00:27]} 38. f3 {[%clk 0:01:09]}  Ndc4 {[%clk 0:00:27]} 39. Kf2 {[%clk 0:01:09]}  Kd6 {[%clk 0:00:26]} 40. e4 {[%clk 0:01:10]}  Nc6 {[%clk 0:00:26]} 41. e5+ {[%clk 0:01:09]}  Kc7 {[%clk 0:00:25]} 42. Nc2 {[%clk 0:01:06]}  b4 {[%clk 0:00:24]} 43. Ne3 {[%clk 0:01:00]}  Nxd4 {[%clk 0:00:20]} 44. Bxc4 {[%clk 0:01:00]}  dxc4 {[%clk 0:00:21]} 45. Nxc4 {[%clk 0:01:01]}  Kc6 {[%clk 0:00:20]} 46. Ke3 {[%clk 0:01:01]}  Kc5 {[%clk 0:00:21]} 47. Nd6 {[%clk 0:01:01]}  b3 {[%clk 0:00:21]} 48. Kd3 {[%clk 0:00:58]}  b2 {[%clk 0:00:21]} 49. Ne4+ {[%clk 0:00:58]}  Kd5 {[%clk 0:00:20]} 50. Nc3+ {[%clk 0:00:56]}  Kc5 {[%clk 0:00:18]} 51. Na4+ {[%clk 0:00:56]}  Kd5 {[%clk 0:00:17]} 52. Nc3+ {[%clk 0:00:56]}  Kc5 {[%clk 0:00:17]} 53. Na4+ {[%clk 0:00:45]}  Kc6 {[%clk 0:00:17]} 54. Nxb2 {[%clk 0:00:37]}  Nxf3 {[%clk 0:00:17]} 55. Ke4 {[%clk 0:00:37]}  Nxh2 {[%clk 0:00:17]} 56. Nd3 {[%clk 0:00:37]}  Ng4 {[%clk 0:00:16]} 57. Kf4 {[%clk 0:00:37]}  h5 {[%clk 0:00:16]} 58. Kg5 {[%clk 0:00:37]}  f6+ {[%clk 0:00:16]} 59. exf6 {[%clk 0:00:34]}  Nxf6 {[%clk 0:00:17]} 60. Kg6 {[%clk 0:00:34]}  Ne4 {[%clk 0:00:17]} 61. Kxh5 {[%clk 0:00:29]}  Nxg3+ {[%clk 0:00:16]} 62. Kg6 {[%clk 0:00:30]}  Nf5 {[%clk 0:00:17]} 63. Nf4 {[%clk 0:00:29]}  Kd6 {[%clk 0:00:17]} 64. Nh5 {[%clk 0:00:28]}  Kd5 {[%clk 0:00:15]} 65. Nf4+ {[%clk 0:00:27]}  Ke5 {[%clk 0:00:15]} 66. Nd3+ {[%clk 0:00:27]}  Kd6 {[%clk 0:00:15]} 67. Nf4 {[%clk 0:00:27]}  Ke7 {[%clk 0:00:15]} 68. Nd3 {[%clk 0:00:27]}  Kf8 {[%clk 0:00:14]} 69. Ne5 {[%clk 0:00:26]}  Ne7+ {[%clk 0:00:14]} 70. Kg5 {[%clk 0:00:26]}  Ke8 {[%clk 0:00:15]} 71. Nf3 {[%clk 0:00:25]}  Kd7 {[%clk 0:00:14]} 72. Ne5+ {[%clk 0:00:24]}  Kd6 {[%clk 0:00:15]} 73. Nf7+ {[%clk 0:00:22]}  Kd5 {[%clk 0:00:16]} 74. Kf4 {[%clk 0:00:22]}  Ng6+ {[%clk 0:00:15]} 75. Kg5 {[%clk 0:00:22]}  Ne5 {[%clk 0:00:15]} 76. Nd8 {[%clk 0:00:22]}  Nc6 {[%clk 0:00:15]} 77. Nxe6 {[%clk 0:00:21]}  Kxe6 {[%clk 0:00:15]} 78. Kg6 {[%clk 0:00:21]}  Ne5+ {[%clk 0:00:16]} 79. Kxg7 {[%clk 0:00:21]} 1/2-1/2


[Site "https://www.chess.com"]